fUSD/lending_fUSD_20250526
["ID","MTS","AMOUNT","RATE_DAILY","PERIOD"]
[362399718,1748253038857,-420.0,0.00019995,2]
[362399719,1748253038867,-497.9416168,0.00019995,2]
[362399720,1748253038876,-329.74686212,0.00019995,2]
[362399721,1748253038893,-90.25313788,0.00019995,2]
[362399722,1748253038903,-420.0,0.00019995,2]
[362399723,1748253038912,-21.38369886,0.00019995,2]
[362399734,1748253039604,-195.8840532,0.00019994,2]
[362399735,1748253039614,-420.0,0.00019994,2]
[362399736,1748253039624,-420.0,0.00019994,2]
[362399737,1748253039634,-420.0,0.00019994,2]
[362399738,1748253039644,-401.26080417,0.00019995,2]
[362399739,1748253039655,-420.0,0.00019995,2]
[362399740,1748253039666,-420.0,0.00019995,2]
[362399741,1748253039676,-422.87696367,0.00019995,2]
[362399742,1748253039686,-420.0,0.00019995,2]
[362399743,1748253039697,-420.0,0.00019995,2]
[362399744,1748253039706,-420.0,0.00019995,2]
[362399745,1748253039716,-420.0,0.00019995,2]
[362399746,1748253039726,-422.68225501,0.00019995,2]
[362399747,1748253039735,-420.0,0.00019995,2]
[362399748,1748253039745,-425.78444274,0.00019995,2]
[362399749,1748253039754,-422.43646523,0.00019995,2]
[362399750,1748253039764,-480.12,0.00019995,2]
[362399751,1748253039774,-439.00280593,0.00019995,2]
[362399752,1748253039783,-438.02486285,0.00019995,2]
[362399753,1748253039792,-420.0,0.00019995,2]
[362399754,1748253039803,-420.0,0.00019995,2]
[362399755,1748253039812,-420.0,0.00019995,2]
[362399756,1748253039822,-423.5106961,0.00019995,2]
[362399757,1748253039831,-420.0,0.00019995,2]
[362399758,1748253039840,-420.0,0.00019995,2]
[362399759,1748253039853,-420.0,0.00019995,2]
[362399760,1748253039863,-424.30649476,0.00019995,2]
[362399761,1748253039872,-420.0,0.00019995,2]
[362399762,1748253039882,-500.61,0.00019995,2]
[362399763,1748253039892,-420.0,0.00019995,2]
[362399764,1748253039901,-420.0,0.00019995,2]
[362399765,1748253039910,-420.0,0.00019995,2]
[362399766,1748253039920,-421.78318098,0.00019995,2]
[362399767,1748253039929,-420.0,0.00019995,2]
[362399768,1748253039939,-423.96212895,0.00019995,2]
[362399769,1748253039948,-420.0,0.00019995,2]
[362399770,1748253039957,-420.0,0.00019995,2]
[362399771,1748253039966,-491.27389932,0.00019995,2]
[362399772,1748253039975,-430.6985247,0.00019995,2]
[362399773,1748253039984,-420.0,0.00019995,2]
[362399774,1748253039993,-420.0,0.00019995,2]
[362399775,1748253040002,-420.0,0.00019995,2]
[362399776,1748253040012,-424.62069775,0.00019995,2]
[362399777,1748253040021,-420.0,0.00019995,2]
[362399778,1748253040033,-420.0,0.00019995,2]
[362399779,1748253040042,-425.90269803,0.00019995,2]
[362399780,1748253040051,-420.0,0.00019995,2]
[362399781,1748253040060,-554.53,0.00019995,2]
[362399782,1748253040069,-423.32804387,0.00019995,2]
[362399783,1748253040078,-420.0,0.00019995,2]
[362399784,1748253040087,-420.0,0.00019995,2]
[362399785,1748253040099,-420.0,0.00019995,2]
[362399786,1748253040109,-422.24570537,0.00019995,2]
[362399787,1748253040118,-420.0,0.00019995,2]
[362399788,1748253040127,-420.0,0.00019995,2]
[362399789,1748253040137,-420.0,0.00019995,2]
[362399790,1748253040146,-420.0,0.00019995,2]
[362399791,1748253040155,-420.0,0.00019995,2]
[362399793,1748253040164,-420.0,0.00019995,2]
[362399795,1748253040174,-424.48304661,0.00019995,2]
[362399796,1748253040183,-420.0,0.00019995,2]
[362399797,1748253040193,-420.0,0.00019995,2]
[362399798,1748253040202,-425.85955481,0.00019995,2]
[362399799,1748253040211,-420.0,0.00019995,2]
[362399801,1748253040221,-352.32978801,0.00019995,2]
[362399803,1748253040230,-421.94103674,0.00019995,2]
[362399804,1748253040239,-245.9,0.00019995,2]
[362399805,1748253040249,-420.0,0.00019995,2]
[362399806,1748253040259,-445.19755443,0.00019995,2]
[362399807,1748253040268,-420.0,0.00019995,2]
[362399808,1748253040277,-420.0,0.00019995,2]
[362399809,1748253040286,-420.0,0.00019995,2]
[362399810,1748253040296,-420.0,0.00019995,2]
[362399811,1748253040305,-420.0,0.00019995,2]
[362399812,1748253040315,-420.0,0.00019995,2]
[362399813,1748253040324,-420.0,0.00019995,2]
[362399814,1748253040333,-420.0,0.00019995,2]
[362399815,1748253040344,-420.0,0.00019995,2]
[362399816,1748253040354,-420.0,0.00019995,2]
[362399817,1748253040363,-420.0,0.00019995,2]
[362399818,1748253040372,-420.0,0.00019995,2]
[362399819,1748253040382,-436.22033459,0.00019995,2]
[362399820,1748253040393,-258.31734084,0.00019995,2]
[362399821,1748253040403,-423.14653253,0.00019995,2]
[362399822,1748253040413,-165.26,0.00019995,2]
[362399823,1748253040422,-420.0,0.00019995,2]
[362399824,1748253040431,-420.0,0.00019995,2]
[362399825,1748253040441,-420.0,0.00019995,2]
[362399826,1748253040450,-420.0,0.00019995,2]
[362399827,1748253040460,-425.04429985,0.00019995,2]
[362399828,1748253040469,-420.0,0.00019995,2]
[362399829,1748253040478,-420.0,0.00019995,2]
[362399830,1748253040488,-420.0,0.00019995,2]
[362399831,1748253040499,-537.83987271,0.00019995,2]
[362399832,1748253040510,-424.41058669,0.00019995,2]
[362399833,1748253040521,-500.0,0.00019995,2]
[362399834,1748253040532,-420.0,0.00019995,2]
[362399835,1748253040541,-420.0,0.00019995,2]
[362399836,1748253040551,-420.0,0.00019995,2]
[362399837,1748253040560,-500.0,0.00019995,2]
[362399838,1748253040570,-472.36,0.00019995,2]
[362399839,1748253040579,-485.45186181,0.00019995,2]
[362399840,1748253040588,-420.0,0.00019995,2]
[362399841,1748253040598,-425.13857015,0.00019995,2]
[362399842,1748253040608,-465.06,0.00019995,2]
[362399843,1748253040617,-420.0,0.00019995,2]
[362399844,1748253040627,-420.0,0.00019995,2]
[362399845,1748253040636,-420.0,0.00019995,2]
[362399846,1748253040646,-420.0,0.00019995,2]
[362399847,1748253040655,-420.0,0.00019995,2]
[362399848,1748253040665,-420.0,0.00019995,2]
[362399849,1748253040675,-420.0,0.00019995,2]
[362399850,1748253040684,-420.0,0.00019995,2]
[362399851,1748253040694,-420.0,0.00019995,2]
[362399852,1748253040703,-500.0,0.00019995,2]
[362399853,1748253040712,-425.1624161,0.00019995,2]
[362399854,1748253040722,-514.14744913,0.00019995,2]
[362399855,1748253040731,-426.17932787,0.00019995,2]
[362399856,1748253040740,-421.80979155,0.00019995,2]
[362399857,1748253040749,-420.0,0.00019995,2]
[362399858,1748253040760,-423.77057086,0.00019995,2]
[362399859,1748253040769,-483.68043406,0.00019995,2]
[362399860,1748253040779,-533.32964097,0.00019995,2]
[362399861,1748253040788,-420.0,0.00019995,2]
[362399862,1748253040797,-420.0,0.00019995,2]
[362399863,1748253040807,-420.0,0.00019995,2]
[362399864,1748253040816,-420.0,0.00019995,2]
[362399865,1748253040826,-500.0,0.00019995,2]
[362399866,1748253040836,-420.0,0.00019995,2]
[362399867,1748253040847,-420.0,0.00019995,2]
[362399868,1748253040856,-420.0,0.00019995,2]
[362399869,1748253040866,-420.0,0.00019995,2]
[362399870,1748253040876,-420.0,0.00019995,2]
[362399871,1748253040886,-421.15949606,0.00019995,2]
[362399872,1748253040896,-426.03554268,0.00019995,2]
[362399873,1748253040905,-427.2792551,0.00019995,2]
[362399874,1748253040914,-420.0,0.00019995,2]
[362399875,1748253040924,-422.43535734,0.00019995,2]
[362399876,1748253040934,-434.48196232,0.00019995,2]
[362399877,1748253040944,-425.33111869,0.00019995,2]
[362399878,1748253040953,-400.83902893,0.00019995,2]
[362399879,1748253040964,-420.0,0.00019995,2]
[362399880,1748253040975,-429.71054354,0.00019995,2]
[362399881,1748253040984,-420.0,0.00019995,2]
[362399882,1748253040994,-463.89,0.00019995,2]
[362399883,1748253041004,-348.48931108,0.00019995,2]
[362399884,1748253041014,-568.05905248,0.00019995,2]
[362399885,1748253041024,-420.0,0.00019995,2]
[362399886,1748253041035,-420.0,0.00019995,2]
[362399887,1748253041045,-532.05778979,0.00019995,2]
[362399888,1748253041054,-284.26388187,0.00019995,2]
[362399889,1748253041064,-420.0,0.00019995,2]
[362399890,1748253041074,-500.0,0.00019995,2]
[362399891,1748253041084,-420.0,0.00019995,2]
[362399892,1748253041093,-420.0,0.00019996,2]
[362399893,1748253041103,-420.96039606,0.00019996,2]
[362399894,1748253041114,-323.15349097,0.00019996,2]
[362399895,1748253041125,-420.0,0.00019996,2]
[362399896,1748253041135,-161.289869,0.00019997,2]
[362399897,1748253041145,-181.62244686,0.00019997,2]
[362399898,1748253041155,-420.0,0.00019997,2]
[362399899,1748253041165,-286.98,0.00019997,2]
[362399900,1748253041174,-401.02,0.00019997,2]
[362399901,1748253041184,-420.0,0.00019997,2]
[362399902,1748253041194,-426.13,0.00019997,2]
[362399903,1748253041204,-401.01,0.00019997,2]
[362399904,1748253041214,-420.0,0.00019997,2]
[362399905,1748253041224,-164.79,0.00019997,2]
[362399906,1748253041233,-235.54,0.00019997,2]
[362399907,1748253041243,-155.465632,0.00019997,2]
[362399908,1748253041252,-528.92,0.00019997,2]
[362399909,1748253041262,-420.0,0.00019997,2]
[362399910,1748253041272,-155.110847,0.00019997,2]
[362399911,1748253041281,-168.53,0.00019997,2]
[362399912,1748253041291,-500.0,0.00019997,2]
[362399913,1748253041300,-420.0,0.00019997,2]
[362399914,1748253041310,-519.2,0.00019997,2]
[362399915,1748253041320,-166.307776,0.00019997,2]
[362399916,1748253041329,-420.0,0.00019997,2]
[362399917,1748253041339,-420.0,0.00019997,2]
[362399918,1748253041351,-193.55,0.00019997,2]
[362399919,1748253041361,-265.64,0.00019997,2]
[362399920,1748253041371,-420.0,0.00019998,2]
[362399921,1748253041381,-287.32,0.00019998,2]
[362399922,1748253041391,-420.0,0.00019998,2]
[362399923,1748253041400,-411.05,0.00019998,2]
[362399924,1748253041410,-420.0,0.00019998,2]
[362399925,1748253041420,-420.0,0.00019998,2]
[362399926,1748253041430,-420.0,0.00019998,2]
[362399927,1748253041440,-500.0,0.00019998,2]
[362399928,1748253041449,-211.35,0.00019998,2]
[362399929,1748253041459,-499.99,0.00019998,2]
[362399930,1748253041469,-364.38,0.00019998,2]
[362399931,1748253041478,-420.0,0.00019998,2]
[362399932,1748253041488,-485.48615584,0.00019998,2]
[362399933,1748253041498,-499.98,0.00019998,2]
[362399934,1748253041507,-244.05,0.00019998,2]
[362399935,1748253041517,-186.51,0.00019998,2]
[362399936,1748253041526,-415.47,0.00019998,2]
[362399937,1748253041536,-228.32384066,0.00019998,2]
[362399938,1748253041547,-420.0,0.00019998,2]
[362399939,1748253041558,-420.0,0.00019998,2]
[362399940,1748253041567,-422.7936417,0.00019998,2]
[362399941,1748253041577,-422.01824899,0.00019998,2]
[362399942,1748253041587,-421.51458527,0.00019998,2]
[362399943,1748253041597,-420.0,0.00019998,2]
[362399944,1748253041607,-420.0,0.00019998,2]
[362399945,1748253041617,-420.0,0.00019998,2]
[362399946,1748253041627,-420.0,0.00019998,2]
[362399947,1748253041637,-422.01333638,0.00019998,2]
[362399948,1748253041646,-420.0,0.00019998,2]
[362399949,1748253041655,-420.0,0.00019998,2]
[362399950,1748253041666,-420.0,0.00019998,2]
[362399951,1748253041676,-420.0,0.00019998,2]
[362399952,1748253041686,-420.0,0.00019998,2]
[362399953,1748253041695,-420.0,0.00019998,2]
[362399954,1748253041706,-420.0,0.00019998,2]
[362399955,1748253041715,-420.0,0.00019998,2]
[362399956,1748253041726,-420.48904989,0.00019999,2]
[362399957,1748253041736,-161.289869,0.00019999,2]
[362399958,1748253041746,-12500.0,0.00019999,2]
[362399959,1748253041755,-506.44471685,0.00019999,2]
[362399960,1748253041765,-420.0,0.00019999,2]
[362399961,1748253041775,-420.0,0.00019999,2]
[362399962,1748253041785,-420.0,0.00019999,2]
[362399963,1748253041794,-420.0,0.00019999,2]
[362399964,1748253041804,-420.0,0.00019999,2]
[362399965,1748253041814,-214.09,0.00019999,2]
[362399966,1748253041824,-278.23,0.00019999,2]
[362399967,1748253041834,-352.84,0.00019999,2]
[362399968,1748253041845,-155.465632,0.00019999,2]
[362399969,1748253041855,-155.465632,0.00019999,2]
[362399970,1748253041864,-155.465632,0.00019999,2]
[362399971,1748253041875,-155.465632,0.00019999,2]
[362399972,1748253041886,-155.465632,0.00019999,2]
[362399973,1748253041895,-155.465632,0.00019999,2]
[362399974,1748253041906,-261.45,0.00019999,2]
[362399975,1748253041916,-452.35,0.00019999,2]
[362399976,1748253041926,-232.78014541,0.00019999,2]
[362399977,1748253041936,-155.110847,0.00019999,2]
[362399978,1748253041946,-155.110847,0.00019999,2]
[362399979,1748253041956,-155.110847,0.00019999,2]
[362399980,1748253041965,-500.0,0.00019999,2]
[362399981,1748253041977,-253.87486183,0.00019999,2]
[362399982,1748253041987,-420.0,0.00019999,2]
[362399983,1748253041996,-427.89,0.00019999,2]
[362399984,1748253042006,-420.0,0.00019999,2]
[362399985,1748253042016,-421.26729507,0.00019999,2]
[362399986,1748253042026,-420.0,0.00019999,2]
[362399987,1748253042039,-420.0,0.00019999,2]
[362399988,1748253042048,-420.0,0.00019999,2]
[362399989,1748253042058,-420.0,0.00019999,2]
[362399990,1748253042069,-420.0,0.00019999,2]
[362399991,1748253042078,-420.0,0.00019999,2]
[362399992,1748253042088,-420.0,0.00019999,2]
[362399993,1748253042099,-358.16,0.00019999,2]
[362399994,1748253042111,-420.0,0.00019999,2]
[362399995,1748253042121,-420.0,0.00019999,2]
[362399996,1748253042131,-461.14295472,0.00019999,2]
[362399997,1748253042141,-420.0,0.00019999,2]
[362399998,1748253042151,-420.0,0.00019999,2]
[362399999,1748253042161,-569.2549949,0.00019999,2]
[362400000,1748253042171,-420.0,0.00019999,2]
[362400001,1748253042180,-420.0,0.00019999,2]
[362400002,1748253042190,-420.0,0.00019999,2]
[362400003,1748253042200,-565.87,0.00019999,2]
[362400004,1748253042210,-166.307776,0.00019999,2]
[362400005,1748253042220,-420.0,0.00019999,2]
[362400006,1748253042230,-420.0,0.00019999,2]
[362400007,1748253042240,-420.0,0.00019999,2]
[362400008,1748253042250,-286.77446052,0.00019999,2]
[362400009,1748253042260,-420.0,0.00019999,2]
[362400010,1748253042270,-442.81,0.00019999,2]
[362400011,1748253042280,-420.0,0.00019999,2]
[362400012,1748253042290,-420.0,0.00019999,2]
[362400014,1748253042300,-420.0,0.00019999,2]
[362400015,1748253042310,-420.0,0.00019999,2]
[362400016,1748253042320,-420.0,0.00019999,2]
[362400017,1748253042329,-420.0,0.00019999,2]
[362400018,1748253042339,-420.0,0.00019999,2]
[362400019,1748253042349,-420.0,0.00019999,2]
[362400020,1748253042359,-312.54,0.00019999,2]
[362400021,1748253042369,-451.92,0.00019999,2]
[362400022,1748253042380,-287.23821819,0.00019999,2]
[362400023,1748253042391,-420.0,0.00019999,2]
[362400024,1748253042402,-420.0,0.00019999,2]
[362400025,1748253042412,-420.0,0.00019999,2]
[362400026,1748253042422,-420.0,0.00019999,2]
[362400027,1748253042432,-420.0,0.00019999,2]
[362400028,1748253042443,-420.0,0.00019999,2]
[362400029,1748253042452,-420.0,0.00019999,2]
[362400030,1748253042462,-332.98,0.00019999,2]
[362400031,1748253042472,-525.89862408,0.00019999,2]
[362400032,1748253042482,-420.0,0.00019999,2]
[362400033,1748253042492,-420.0,0.00019999,2]
[362400034,1748253042502,-420.0,0.00019999,2]
[362400035,1748253042512,-420.0,0.00019999,2]
[362400036,1748253042522,-420.0,0.00019999,2]
[362400037,1748253042532,-420.0,0.00019999,2]
[362400038,1748253042543,-307.13,0.00019999,2]
[362400039,1748253042554,-421.0299132,0.00019999,2]
[362400040,1748253042564,-422.94887822,0.00019999,2]
[362400041,1748253042574,-420.0,0.00019999,2]
[362400042,1748253042584,-420.0,0.00019999,2]
[362400043,1748253042594,-424.75810556,0.00019999,2]
[362400044,1748253042604,-420.0,0.00019999,2]
[362400045,1748253042614,-501.92980932,0.00019999,2]
[362400046,1748253042624,-420.0,0.00019999,2]
[362400047,1748253042634,-420.0,0.00019999,2]
[362400048,1748253042644,-420.0,0.00019999,2]
[362400049,1748253042655,-191.86,0.00019999,2]
[362400050,1748253042664,-420.0,0.00019999,2]
[362400051,1748253042674,-453.97468346,0.00019999,2]
[362400052,1748253042684,-531.09,0.00019999,2]
[362400053,1748253042694,-166.06727987,0.00019999,2]
[362400054,1748253042704,-421.28149432,0.00019999,2]
[362400055,1748253042713,-454.94,0.00019999,2]
[362400056,1748253042723,-438.22,0.00019999,2]
[362400057,1748253042733,-422.89236233,0.00019999,2]
[362400058,1748253042743,-422.85553343,0.00019999,2]
[362400059,1748253042752,-261.27,0.00019999,2]
[362400060,1748253042762,-425.3588901,0.00019999,2]
[362400061,1748253042772,-420.0,0.00019999,2]
[362400062,1748253042782,-420.0,0.00019999,2]
[362400063,1748253042792,-420.0,0.00019999,2]
[362400064,1748253042801,-420.0,0.00019999,2]
[362400065,1748253042811,-12500.0,0.00019999,2]
[362400066,1748253042821,-420.0,0.00019999,2]
[362400067,1748253042830,-420.0,0.00019999,2]
[362400068,1748253042840,-420.0,0.00019999,2]
[362400069,1748253042851,-356.59,0.00019999,2]
[362400070,1748253042861,-420.0,0.00019999,2]
[362400071,1748253042870,-420.0,0.00019999,2]
[362400073,1748253042880,-420.0,0.00019999,2]
[362400075,1748253042890,-420.0,0.00019999,2]
[362400076,1748253042899,-295.54,0.00019999,2]
[362400077,1748253042909,-492.76,0.00019999,2]
[362400078,1748253042919,-537.75,0.00019999,2]
[362400079,1748253042928,-420.0,0.00019999,2]
[362400081,1748253042938,-468.15,0.00019999,2]
[362400083,1748253042949,-206.23468871,0.00019999,2]
[362400085,1748253042959,-420.0,0.00019999,2]
[362400087,1748253042968,-420.0,0.00019999,2]
[362400089,1748253042978,-289.79,0.00019999,2]
[362400091,1748253042990,-278.76,0.00019999,2]
[362400093,1748253043001,-293.28,0.00019999,2]
[362400096,1748253043011,-260.71635046,0.00019999,2]
[362400117,1748253043201,-250.0,0.00019999,2]
[362400119,1748253043212,-357.34,0.00019999,2]
[362400121,1748253043221,-333.36,0.00019999,2]
[362400123,1748253043231,-167.66,0.00019999,2]
[362400125,1748253043240,-230.75325268,0.00019999,2]
[362400127,1748253043250,-261.06180395,0.00019999,2]
[362400129,1748253043259,-420.0,0.00019999,2]
[362400130,1748253043268,-420.0,0.00019999,2]
[362400132,1748253043278,-400.5930002,0.00019999,2]
[362400133,1748253043288,-336.32048423,0.00019999,2]
[362400134,1748253043298,-315.46,0.00019999,2]
[362400135,1748253043307,-508.71733063,0.00019999,2]
[362400136,1748253043316,-514.68,0.00019999,2]
[362400137,1748253043326,-466.51,0.00019999,2]
[362400138,1748253043336,-420.0,0.00019999,2]
[362400139,1748253043347,-301.07388042,0.00019999,2]
[362400140,1748253043356,-420.0,0.00019999,2]
[362400141,1748253043365,-168.82657747,0.00019999,2]
[362400142,1748253043375,-424.12526238,0.00019999,2]
[362400143,1748253043385,-477.86428837,0.00019999,2]
[362400144,1748253043395,-420.0,0.00019999,2]
[362400145,1748253043404,-282.76740343,0.00019999,2]
[362400146,1748253043414,-427.81772169,0.00019999,2]
[362400147,1748253043423,-423.89513442,0.00019999,2]
[362400148,1748253043434,-420.0,0.00019999,2]
[362400149,1748253043444,-420.0,0.00019999,2]
[362400150,1748253043453,-420.0,0.00019999,2]
[362400151,1748253043462,-221.54,0.00019999,2]
[362400152,1748253043472,-437.89,0.00019999,2]
[362400153,1748253043481,-151.37,0.00019999,2]
[362400154,1748253043490,-431.67006378,0.00019999,2]
[362400155,1748253043501,-420.0,0.00019999,2]
[362400156,1748253043510,-420.0,0.00019999,2]
[362400157,1748253043519,-284.66621127,0.00019999,2]
[362400158,1748253043528,-161.86059548,0.00019999,2]
[362400159,1748253043539,-420.0,0.00019999,2]
[362400160,1748253043548,-420.0,0.00019999,2]
[362400161,1748253043557,-510.50805592,0.00019999,2]
[362400162,1748253043566,-440.01816892,0.00019999,2]
[362400163,1748253043575,-425.80089415,0.00019999,2]
[362400164,1748253043584,-420.0,0.00019999,2]
[362400165,1748253043594,-379.06,0.00019999,2]
[362400166,1748253043604,-420.0,0.00019999,2]
[362400167,1748253043613,-447.96807474,0.00019999,2]
[362400168,1748253043623,-424.32267261,0.00019999,2]
[362400169,1748253043632,-420.0,0.00019999,2]
[362400170,1748253043641,-500.61657444,0.00019999,2]
[362400171,1748253043650,-420.0,0.00019999,2]
[362400172,1748253043659,-359.17792755,0.00019999,2]
[362400173,1748253043668,-425.10056961,0.00019999,2]
[362400174,1748253043677,-420.0,0.00019999,2]
[362400175,1748253043686,-423.422464,0.00019999,2]
[362400176,1748253043696,-350.82,0.00019999,2]
[362400177,1748253043705,-420.0,0.00019999,2]
[362400178,1748253043714,-383.85,0.00019999,2]
[362400179,1748253043723,-420.0,0.00019999,2]
[362400180,1748253043733,-360.28679159,0.00019999,2]
[362400181,1748253043742,-422.52624455,0.00019999,2]
[362400182,1748253043752,-420.0,0.00019999,2]
[362400183,1748253043761,-420.0,0.00019999,2]
[362400184,1748253043770,-272.11,0.00019999,2]
[362400185,1748253043780,-420.0,0.00019999,2]
[362400186,1748253043789,-527.85286455,0.00019999,2]
[362400187,1748253043798,-182.26273262,0.00019999,2]
[362400188,1748253043808,-420.0,0.00019999,2]
[362400189,1748253043818,-258.97605578,0.00019999,2]
[362400190,1748253043827,-398.70745429,0.00019999,2]
[362400191,1748253043838,-420.0,0.00019999,2]
[362400192,1748253043848,-245.38,0.00019999,2]
[362400193,1748253043858,-420.0,0.00019999,2]
[362400194,1748253043867,-472.98471017,0.00019999,2]
[362400195,1748253043876,-325.02233287,0.00019999,2]
[362400196,1748253043887,-172.37042107,0.00019999,2]
[362400197,1748253043897,-455.9102707,0.00019999,2]
[362400198,1748253043909,-439.31426249,0.00019999,2]
[362400199,1748253043918,-420.0,0.00019999,2]
[362400200,1748253043927,-420.0,0.00019999,2]
[362400201,1748253043936,-461.6,0.00019999,2]
[362400202,1748253043946,-167.66761875,0.00019999,2]
[362400203,1748253043955,-461.6,0.00019999,2]
[362400204,1748253043965,-461.6,0.00019999,2]
[362400205,1748253043974,-461.6,0.00019999,2]
[362400206,1748253043990,-461.6,0.00019999,2]
[362400207,1748253044002,-461.6,0.00019999,2]
[362400208,1748253044012,-461.6,0.00019999,2]
[362400209,1748253044023,-461.6,0.00019999,2]
[362400210,1748253044034,-461.6,0.00019999,2]
[362400211,1748253044044,-461.6,0.00019999,2]
[362400212,1748253044055,-461.6,0.00019999,2]
[362400213,1748253044064,-461.6,0.00019999,2]
[362400214,1748253044076,-461.6,0.00019999,2]
[362400215,1748253044086,-420.0,0.00019999,2]
[362400216,1748253044096,-420.0,0.00019999,2]
[362400217,1748253044105,-461.6,0.00019999,2]
[362400218,1748253044117,-420.0,0.00019999,2]
[362400219,1748253044126,-461.6,0.00019999,2]
[362400220,1748253044136,-413.65,0.00019999,2]
[362400221,1748253044145,-461.6,0.00019999,2]
[362400222,1748253044155,-461.6,0.00019999,2]
[362400223,1748253044164,-461.6,0.00019999,2]
[362400224,1748253044174,-420.0,0.00019999,2]
[362400225,1748253044184,-461.6,0.00019999,2]
[362400226,1748253044194,-508.67632674,0.00019999,2]
[362400227,1748253044204,-312.8,0.00019999,2]
[362400228,1748253044214,-461.6,0.00019999,2]
[362400229,1748253044223,-461.6,0.00019999,2]
[362400230,1748253044233,-461.6,0.00019999,2]
[362400231,1748253044242,-461.65,0.00019999,2]
[362400232,1748253044252,-261.01887181,0.00019999,2]
[362400233,1748253044263,-420.0,0.00019999,2]
[362400234,1748253044272,-238.1217392,0.00019999,2]
[362400235,1748253044282,-551.16149901,0.00019999,2]
[362400236,1748253044291,-426.5826584,0.00019999,2]
[362400237,1748253044300,-420.0,0.00019999,2]
[362400238,1748253044309,-420.0,0.00019999,2]
[362400239,1748253044319,-420.0,0.00019999,2]
[362400240,1748253044328,-420.0,0.00019999,2]
[362400241,1748253044338,-420.0,0.00019999,2]
[362400242,1748253044348,-420.0,0.00019999,2]
[362400243,1748253044357,-420.0,0.00019999,2]
[362400244,1748253044366,-177.92532036,0.00019999,2]
[362400245,1748253044376,-386.6818491,0.00019999,2]
[362400246,1748253044385,-365.17,0.00019999,2]
[362400247,1748253044394,-433.55810419,0.00019999,2]
[362400248,1748253044403,-420.0,0.00019999,2]
[362400249,1748253044412,-420.0,0.00019999,2]
[362400250,1748253044421,-420.0,0.00019999,2]
[362400251,1748253044430,-510.72,0.00019999,2]
[362400252,1748253044439,-420.0,0.00019999,2]
[362400253,1748253044448,-556.25,0.00019999,2]
[362400254,1748253044457,-420.0,0.00019999,2]
[362400255,1748253044466,-420.0,0.00019999,2]
[362400256,1748253044475,-267.45,0.00019999,2]
[362400257,1748253044484,-455.78,0.00019999,2]
[362400258,1748253044493,-470.4,0.00019999,2]
[362400259,1748253044502,-426.08845074,0.00019999,2]
[362400260,1748253044512,-420.0,0.00019999,2]
[362400261,1748253044521,-420.0,0.00019999,2]
[362400262,1748253044530,-420.0,0.00019999,2]
[362400263,1748253044539,-246.65350818,0.00019999,2]
[362400264,1748253044548,-306.75,0.00019999,2]
[362400265,1748253044557,-426.59913828,0.00019999,2]
[362400266,1748253044566,-420.0,0.00019999,2]
[362400267,1748253044575,-420.0,0.00019999,2]
[362400268,1748253044584,-420.0,0.00019999,2]
[362400269,1748253044593,-420.0,0.00019999,2]
[362400270,1748253044602,-253.36,0.00019999,2]